Workbook

Sheet Special Rates 2020-21
E4: 2020/21 Calculation of Special School Funding Rates
B8: DfE | E8: =IFERROR(VLOOKUP(DFENUM,DATA!B5:C26,2,0),"") -> 
B11: Section 1 - Commissioned Place numbers
B13: Academic Year | C13: Pre-16 | D13: Post-16 | E13: Weekday Residential | F13: Weekend Residential | H13: High Needs Place numbers as agreed annually with the Local Authority's SEN team Place numbers 2019-20 agreed November 2018 Place numbers 2020-21 agreed November 2019
B15: 2019/20 | C15: =IFERROR(VLOOKUP(DFENUM,DATA!B5:K26,3,0),0) -> 0 | D15: =IFERROR(VLOOKUP(DFENUM,DATA!B5:K26,5,0),0) -> 0 | E15: =IFERROR(VLOOKUP(DFENUM,DATA!B5:K26,7,0),0) -> 0 | F15: =IFERROR(VLOOKUP(DFENUM,DATA!B5:K26,9,0),0) -> 0
B17: 2020/21 | C17: =IFERROR(VLOOKUP(DFENUM,DATA!B5:K26,4,0),0) -> 0 | D17: =IFERROR(VLOOKUP(DFENUM,DATA!B5:K26,6,0),0) -> 0 | E17: =IFERROR(VLOOKUP(DFENUM,DATA!B5:K26,8,0),0) -> 0 | F17: =IFERROR(VLOOKUP(DFENUM,DATA!B5:K26,10,0),0) -> 0
B19: Movement | C19: =C17-C15 -> 0 | D19: =D17-D15 -> 0 | E19: =E17-E15 -> 0 | F19: =F17-F15 -> 0
J23: Day Pupil | P23: Weekday | S23: Weekend
B24: Section 2 - Calculation of funding rate for April 2020 to March 2021
J25: MLD & SLCN | K25: BESD | L25: SLD | M25: PD & PMLD | N25: ASD | P25: PD & PMLD | Q25: ASD | S25: PD & PMLD
A27: (A) | B27: April 2020 to August 2020 (Formula only excluding MFG)- based on Academic Year 2019 to 2020. Data taken from 2019-20 Funding Rates Calculation. | J27: =IFERROR(VLOOKUP(DFENUM,DATA!B5:AA26,11,0),0) -> 0 | K27: =IFERROR(VLOOKUP(DFENUM,DATA!B5:AA26,17,0),0) -> 0 | L27: =IFERROR(VLOOKUP(DFENUM,DATA!B5:AA26,20,0),0) -> 0 | M27: =IFERROR(VLOOKUP(DFENUM,DATA!B5:AA26,23,0),0) -> 0 | N27: =IFERROR(VLOOKUP(DFENUM,DATA!B5:AA26,14,0),0) -> 0 | P27: =IFERROR(VLOOKUP(DFENUM,DATA!B5:BX26,50,0),0) -> 0 | Q27: =IFERROR(VLOOKUP(DFENUM,DATA!B5:BX26,47,0),0) -> 0 | S27: =IFERROR(VLOOKUP(DFENUM,DATA!B5:BX26,53,0),0) -> 0
A29: (B) | B29: September 2020 to March 2021 (Formula only excluding MFG)- based on Academic Year 2020 to 2021. See section 3 for calculation. | J29: =IFERROR(VLOOKUP(DFENUM,DATA!B5:AA26,12,0),0) -> 0 | K29: =IFERROR(VLOOKUP(DFENUM,DATA!B5:AA26,18,0),0) -> 0 | L29: =IFERROR(VLOOKUP(DFENUM,DATA!B5:AA26,21,0),0) -> 0 | M29: =IFERROR(VLOOKUP(DFENUM,DATA!B5:AA26,24,0),0) -> 0 | N29: =IFERROR(VLOOKUP(DFENUM,DATA!B5:AA26,15,0),0) -> 0 | P29: =IFERROR(VLOOKUP(DFENUM,DATA!B5:BX26,52,0),0) -> 0 | Q29: =IFERROR(VLOOKUP(DFENUM,DATA!B5:BX26,49,0),0) -> 0 | S29: =IFERROR(VLOOKUP(DFENUM,DATA!B5:BX26,55,0),0) -> 0
A31: (C) | B31: April 2020 to March 2021 - based on Academic Year 2019 to 2020 (April 2020 to August 2020) 5/12's + Academic Year 2020 to 2021 (September 2020 to March 2021) 7/12's | I31: = (A) X 5/12 + (B) X 7/12 | J31: =(J27*5/12)+(J29*7/12) -> 0 | K31: =(K27*5/12)+(K29*7/12) -> 0 | L31: =(L27*5/12)+(L29*7/12) -> 0 | M31: =(M27*5/12)+(M29*7/12) -> 0 | N31: =(N27*5/12)+(N29*7/12) -> 0 | P31: =IF(DFENUM=7073,P27,(P27*5/12)+(P29*7/12)) -> 0 | Q31: =IF(DFENUM=7073,Q27,(Q27*5/12)+(Q29*7/12)) -> 0 | S31: =IF(DFENUM=7073,S27,(S27*5/12)+(S29*7/12)) -> 0
A33: (D) | B33: Final funding rate for financial Year 2019 to 2020 | J33: =IFERROR(VLOOKUP(DFENUM,DATA!B5:AA26,13,0),0) -> 0 | K33: =IFERROR(VLOOKUP(DFENUM,DATA!B5:AA26,19,0),0) -> 0 | L33: =IFERROR(VLOOKUP(DFENUM,DATA!B5:AA26,22,0),0) -> 0 | M33: =IFERROR(VLOOKUP(DFENUM,DATA!B5:AA26,25,0),0) -> 0 | N33: =IFERROR(VLOOKUP(DFENUM,DATA!B5:AA26,16,0),0) -> 0 | P33: =IFERROR(VLOOKUP(DFENUM,DATA!B5:BX26,51,0),0) -> 0 | Q33: =IFERROR(VLOOKUP(DFENUM,DATA!B5:BX26,48,0),0) -> 0 | S33: =IFERROR(VLOOKUP(DFENUM,DATA!B5:BX26,54,0),0) -> 0
A34: (E) | B34: MFG rate (D) X 100% | J34: =J33 -> 0 | K34: =K33 -> 0 | L34: 0 | M34: 0 | N34: 0 | P34: =P33 -> 0 | Q34: =Q33 -> 0 | S34: =S33 -> 0
J37: MLD & SLCN | K37: BESD | L37: SLD | M37: PD & PMLD | N37: ASD | P37: PD & PMLD | Q37: ASD | S37: PD & PMLD
A38: (F) | B38: Final Rate (Greater of Formula (C) or MFG (E)) | G38: Formula (C) | J38: =J31 -> 0 | K38: =K31 -> 0 | L38: =L31 -> 0 | M38: =M31 -> 0 | N38: =N31 -> 0 | P38: =P31 -> 0 | Q38: =Q31 -> 0 | S38: =S31 -> 0
G39: MFG funding rate (E) | J39: =J34 -> 0 | K39: =K34 -> 0 | L39: =L34 -> 0 | M39: =M34 -> 0 | N39: =N34 -> 0 | P39: =P34 -> 0 | Q39: =Q34 -> 0 | S39: =S34 -> 0
G40: Amount of MFG if (E) is greater than ( C) | J40: =IF(J38>J39,0,J39-J38) -> 0 | K40: =IF(K38>K39,0,K39-K38) -> 0 | L40: 0 | M40: 0 | N40: 0 | P40: =IF(P38>P39,0,P39-P38) -> 0 | Q40: 0 | S40: =IF(S38>S39,0,S39-S38) -> 0
G41: Final Rate formula plus MFG | J41: =SUM(J38,J40) -> 0 | K41: =SUM(K38,K40) -> 0 | L41: 0 | M41: 0 | N41: 0 | P41: =SUM(P38,P40) -> 0 | Q41: 0 | S41: =SUM(S38,S40) -> 0
A42: (F) | B42: Place Plus Breakdown
G43: Element 1 & 2 | J43: 10000 | K43: 10000 | L43: 10000 | M43: 10000 | N43: 10000 | P43: =IF($Q$41=0,0,10000) -> 0 | Q43: =IF($Q$41=0,0,10000) -> 0 | S43: =IF($F$17=0,0,10000) -> 0
G44: Element 3 | J44: =J41-J43 -> -10000 | K44: =K41-K43 -> -10000 | L44: -10000 | M44: -10000 | N44: -10000 | P44: =P41-P43 -> 0 | Q44: 0 | S44: =S41-S43 -> 0
G45: Total rate | J45: =SUM(J43:J44) -> 0 | K45: =SUM(K43:K44) -> 0 | L45: 0 | M45: 0 | N45: 0 | P45: =SUM(P43:P44) -> 0 | Q45: 0 | S45: =SUM(S43:S44) -> 0
B46: Section 3 - Pupil Led Elements
J47: MLD & SLCN | K47: BESD | L47: SLD | M47: PD & PMLD | N47: ASD | P47: PD & PMLD | Q47: ASD | S47: PD & PMLD
B48: Day Rate | J48: 9231.218662 | K48: 11219.54534 | L48: 13253.77252 | M48: 19957.3335 | N48: 15285.91332 | P48: =IF($P$29=0,0,M48) -> 0 | Q48: =IF($Q$29=0,0,N48) -> 0 | S48: =IF($S$31=0,0,M48) -> 0
B49: Adjusted Rate due to School type (see note) | J49: 0 | K49: =IFERROR(VLOOKUP(DFENUM,DATA!B5:BE26,28,0),0)-K48 -> -11219.54534 | L49: 0 | M49: 0 | N49: =IFERROR(VLOOKUP(DFENUM,DATA!B5:BE26,27,0),0)-N48 -> -15285.91332 | P49: 0 | Q49: =IF($Q$29=0,0,N49) -> 0 | S49: 0
B50: Residential Weekday rate | J50: 0 | K50: 0 | L50: 0 | M50: 0 | N50: 0 | P50: =IF($P$29=0,0,IFERROR(VLOOKUP(DFENUM,DATA!B5:BX26,56,0),0)) -> 0 | Q50: =IF($Q$29=0,0,IFERROR(VLOOKUP(DFENUM,DATA!B5:BX26,56,0),0)) -> 0 | S50: =IF($S$31=0,0,IFERROR(VLOOKUP(DFENUM,DATA!B5:BX26,56,0),0)) -> 0
B51: Residential Weekend rate | J51: 0 | K51: 0 | L51: 0 | M51: 0 | N51: 0 | P51: 0 | Q51: 0 | S51: =IF($S$31=0,0,IFERROR(VLOOKUP(DFENUM,DATA!B5:BX26,57,0),0)) -> 0
B52: Subsidy on day places (catering) | J52: 110.24 | K52: =$J52 -> 110.24 | L52: =$J52 -> 110.24 | M52: 110.24 | N52: 110.24 | P52: =IF($P$29=0,0,M52) -> 0 | Q52: =IF($Q$29=0,0,N52) -> 0 | S52: =IF($S$31=0,0,P52) -> 0
B53: Lunch Grant | J53: 11.44 | K53: =$J53 -> 11.44 | L53: 11.44 | M53: 11.44 | N53: 11.44 | P53: =IF($P$29=0,0,M53) -> 0 | Q53: =IF($Q$29=0,0,N53) -> 0 | S53: =IF($S$31=0,0,P53) -> 0
B54: Specialist Schools Funding | J54: 94.93214611 | K54: 94.93214611 | L54: 94.93214611 | M54: 94.93214611 | N54: 94.93214611 | P54: =IF($P$29=0,0,M54) -> 0 | Q54: =IF($Q$29=0,0,N54) -> 0 | S54: 0
B55: Further Delegation | J55: 45.29731785 | K55: 45.29731785 | L55: 45.29731785 | M55: 45.29731785 | N55: 45.29731785 | P55: =IF($P$29=0,0,M55) -> 0 | Q55: =IF($Q$29=0,0,N55) -> 0 | S55: 0
B56: Residential Weekday Places Catering | J56: 0 | K56: 0 | L56: 0 | M56: 0 | N56: 0 | P56: =IF($P$29=0,0,1414) -> 0 | Q56: =IF($Q$29=0,0,1414) -> 0 | S56: 0
B57: Residential Weekend Places Catering | J57: 0 | K57: 0 | L57: 0 | M57: 0 | N57: 0 | P57: 0 | Q57: 0 | S57: =IF($S$31=0,0,2132) -> 0
B58: London Fringe Day Pupil | J58: =IFERROR(VLOOKUP(DFENUM,DATA!B5:BE26,29,0),0) -> 0 | K58: =IFERROR(VLOOKUP(DFENUM,DATA!B5:BE26,30,0),0) -> 0 | L58: =IFERROR(VLOOKUP(DFENUM,DATA!B5:BE26,31,0),0) -> 0 | M58: =IFERROR(VLOOKUP(DFENUM,DATA!B5:BE26,32,0),0) -> 0 | N58: =IFERROR(VLOOKUP(DFENUM,DATA!B5:BE26,33,0),0) -> 0 | P58: 0 | Q58: 0 | S58: 0
B59: London Fringe Weekday Residential Pupil | J59: 0 | K59: 0 | L59: 0 | M59: 0 | N59: 0 | P59: =IF($P$29=0,0,IFERROR(VLOOKUP(DFENUM,DATA!B5:BX26,58,0),0)) -> 0 | Q59: =IF($Q$29=0,0,IFERROR(VLOOKUP(DFENUM,DATA!B5:BX26,58,0),0)) -> 0 | S59: 0
B60: London Fringe Weekend Residential Pupil | J60: 0 | K60: 0 | L60: 0 | M60: 0 | N60: 0 | P60: 0 | Q60: 0 | S60: =IF($S$31=0,0,IFERROR(VLOOKUP(DFENUM,DATA!B5:BX26,59,0),0)) -> 0
B62: Rate for Pupil Led Elements | J62: =SUM(J48:J61) -> 9493.128126 | K62: =SUM(K48:K61) -> 261.909464 | L62: =SUM(L48:L61) -> 13515.68199 | M62: =SUM(M48:M61) -> 20219.24296 | N62: =SUM(N48:N61) -> 261.909464 | P62: =SUM(P48:P61) -> 0 | Q62: =SUM(Q48:Q61) -> 0 | S62: =SUM(S48:S61) -> 0
B64: Section 4 - School Led Elements
J65: Need Type
F66: Units | G66: Rate | H66: Total | I66: Places | J66: MLD & SLCN | K66: BESD | L66: SLD | M66: PD & PMLD | N66: ASD | P66: PD & PMLD | Q66: ASD | S66: PD & PMLD
B67: Lump Sum Day | F67: =IF(DFENUM>0,1,0) -> 0 | G67: 360184.24 | H67: =F67*G67 -> 0 | I67: =$C$17+$D$17 -> 0 | J67: =IF(I67=0,0,H67/I67) -> 0 | K67: =$J67 -> 0 | L67: =$J67 -> 0 | M67: 0 | N67: 0 | P67: =IF($P$29=0,0,M67) -> 0 | Q67: =IF($Q$29=0,0,N67) -> 0 | S67: =IF($S$31=0,0,M67) -> 0
B68: Lump Sum Catering Day | F68: =IF(DFENUM>0,1,0) -> 0 | G68: 2080 | H68: =F68*G68 -> 0 | I68: =$C$17+$D$17 -> 0 | J68: =IF(I68=0,0,H68/I68) -> 0 | K68: =$J68 -> 0 | L68: 0 | M68: 0 | N68: 0 | P68: 0 | Q68: 0 | S68: =IF($S$31=0,0,M68) -> 0
B69: Specialist Schools Funding- Lump Sum | F69: =IF(DFENUM>0,1,0) -> 0 | G69: 12290.41667 | H69: 0 | I69: 0 | J69: 0 | K69: 0 | L69: 0 | M69: 0 | N69: 0 | P69: 0 | Q69: 0 | S69: 0
B70: Free Mid-day Meals | F70: =IFERROR(VLOOKUP(DFENUM,DATA!$B$5:$BE$26,43,0),0)*(prenew+postnew) -> 0 | G70: 431.6 | H70: 0 | I70: 0 | J70: 0 | K70: 0 | L70: 0 | M70: 0 | N70: 0 | P70: 0 | Q70: 0 | S70: 0
B71: Gross Day Floor Area (m2) | F71: =IFERROR(VLOOKUP(DFENUM,DATA!$B$5:$BE$26,37,0),0) -> 0 | G71: 31.19999769 | H71: 0 | I71: 0 | J71: 0 | K71: 0 | L71: 0 | M71: 0 | N71: 0 | P71: 0 | Q71: 0 | S71: 0
B72: Grounds Site Area (hectares) | F72: =IFERROR(VLOOKUP(DFENUM,DATA!$B$5:$BE$26,40,0),0) -> 0 | G72: 1094.08 | H72: 0 | I72: 0 | J72: 0 | K72: 0 | L72: 0 | M72: 0 | N72: 0 | P72: 0 | Q72: 0 | S72: 0
B73: Rentals | F73: =IF(IFERROR(VLOOKUP(DFENUM,DATA!$B$5:$BE$26,41,0),0)>0,1,0) -> 0 | G73: =IFERROR(VLOOKUP(DFENUM,DATA!$B$5:$BE$26,41,0),0) -> 0 | H73: 0 | I73: 0 | J73: 0 | K73: 0 | L73: 0 | M73: 0 | N73: 0 | P73: 0 | Q73: 0 | S73: 0
B74: Hydrotherapy Pool | F74: =IFERROR(VLOOKUP(DFENUM,DATA!$B$5:$BE$26,42,0),0) -> 0 | G74: 5200 | H74: 0 | I74: 0 | J74: 0 | K74: 0 | L74: 0 | M74: 0 | N74: 0 | P74: 0 | Q74: 0 | S74: 0
B75: Split site- Band 1 | F75: =IFERROR(VLOOKUP(DFENUM,DATA!$B$5:$BE$26,45,0),0) -> 0 | G75: 4553.12 | H75: 0 | I75: 0 | J75: 0 | K75: 0 | L75: 0 | M75: 0 | N75: 0 | P75: 0 | Q75: 0 | S75: 0
B76: Split site - Band 2 | F76: =IFERROR(VLOOKUP(DFENUM,DATA!$B$5:$BE$26,46,0),0) -> 0 | G76: 39964.08 | H76: 0 | I76: 0 | J76: 0 | K76: 0 | L76: 0 | M76: 0 | N76: 0 | P76: 0 | Q76: 0 | S76: 0
B77: Residential Floor Area Weekday (m2) | F77: =IFERROR(VLOOKUP(DFENUM,DATA!$B$5:$BE$26,38,0),0) -> 0 | G77: 51.99952419 | H77: 0 | I77: =E17 -> 0 | J77: 0 | K77: 0 | L77: 0 | M77: 0 | N77: 0 | P77: =IF($P$29=0,0,((F77*G77)/I77)) -> 0 | Q77: =IF($Q$29=0,0,((F77*G77)/I77)) -> 0 | S77: =IF($S$31=0,0,((F77*G77)/I77)) -> 0
B78: Residential Floor Area Weekend (m2) | F78: =IFERROR(VLOOKUP(DFENUM,DATA!$B$5:$BE$26,39,0),0) -> 0 | G78: 67.59990449 | H78: 0 | I78: =E17 -> 0 | J78: 0 | K78: 0 | L78: 0 | M78: 0 | N78: 0 | P78: =IF($P$29=0,0,((F78*G78)/I78)) -> 0 | Q78: =IF($Q$29=0,0,((F78*G78)/I78)) -> 0 | S78: =IF($S$31=0,0,((F78*G78)/I78)) -> 0
B79: Lump Sum Residential | F79: =IF(SUM(P31:S31)>0,1,0) -> 0 | G79: 169962 | H79: 0 | I79: =E17 -> 0 | J79: 0 | K79: 0 | L79: 0 | M79: 0 | N79: 0 | P79: =IF($P$29=0,0,((F79*G79)/I79)) -> 0 | Q79: =IF($Q$29=0,0,((F79*G79)/I79)) -> 0 | S79: =IF($S$31=0,0,((F79*G79)/I79)) -> 0
B80: London Fringe Day Pupils | F80: =IFERROR(VLOOKUP(DFENUM,DATA!$B$5:$BE$26,44,0),0) -> 0 | G80: 4008.42 | H80: 0 | I80: =$C$17+$D$17 -> 0 | J80: 0 | K80: 0 | L80: 0 | M80: 0 | N80: 0 | P80: 0 | Q80: 0 | S80: 0
B81: London Fringe Residential Pupils | F81: 0 | G81: 0 | H81: 0 | I81: =E17 -> 0 | J81: 0 | K81: 0 | L81: 0 | M81: 0 | N81: 0 | P81: =IF($P$29=0,0,IFERROR(VLOOKUP(DFENUM,DATA!B5:BX26,60,0),0)) -> 0 | Q81: =IF($Q$29=0,0,IFERROR(VLOOKUP(DFENUM,DATA!B5:BX26,60,0),0)) -> 0 | S81: =IF($S$31=0,0,IFERROR(VLOOKUP(DFENUM,DATA!B5:BX26,61,0),0)) -> 0
B83: Rate for School Led Elements | J83: =SUM(J67:J82) -> 0 | K83: 0 | L83: 0 | M83: 0 | N83: 0 | P83: =SUM(P67:P82) -> 0 | Q83: =SUM(Q67:Q82) -> 0 | S83: =SUM(S67:S82) -> 0
J87: Need Type
B88: Total Formula Rate | J88: MLD & SLCN | K88: BESD | L88: SLD | M88: PD & PMLD | N88: ASD | P88: PD & PMLD | Q88: ASD | S88: PD & PMLD
J89: =J62+J83 -> 9493.128126 | K89: =K62+K83 -> 261.909464 | L89: =L62+L83 -> 13515.68199 | M89: =M62+M83 -> 20219.24296 | N89: =N62+N83 -> 261.909464 | P89: =P62+P83 -> 0 | Q89: =Q62+Q83 -> 0 | S89: =S62+S83 -> 0
J90: =ROUND(J89-mldnew,1) -> 9493.1 | K90: =ROUND(K89-besdnew,1) -> 261.9 | L90: =ROUND(L89-sldnew,1) -> 13515.7 | M90: =ROUND(M89-pdnew,1) -> 20219.2 | N90: =ROUND(N89-asdnew,1) -> 261.9 | P90: =ROUND(P89-pdweekdaynew,1) -> 0 | Q90: =ROUND(Q89-asdweekdaynew,1) -> 0 | S90: =ROUND(S89-pdweekendnew,1) -> 0
B91: Note | N91: =IF(AND(J90=0,K90=0,L90=0,M90=0,N90=0),"OK","ERROR") -> ERROR | S91: =IF(AND(P90=0,Q90=0,S90=0),"OK","ERROR") -> OK
B92: ASD | G92: BESD | S92: =IF(AND(N91="OK",S91="OK"),"OK","ERROR") -> ERROR
B93: - All ASD pupils in Stone Bay are funded at ASD2 | G93: - 75% of Pupils at BESD Schools funded at BESD2
B94: - 10% of all ASD places in C & I and PSCN Special Schools are funded at ASD2 | G94: - 25% of all Primary aged Pupils at B&L Schools funded at at BESD2
B102: Section 5 - Analysis of Rate Changes
D105: 2019/20 Financial Year | F105: 2020/21 Financial Year | H105: Movement £ | I105: Movement %
B106: Pupil Led Elements | J106: }
C107: MLD & SLCN | D107: =VLOOKUP(DFENUM,DATA!B:CG,63,0) ->  | F107: =VLOOKUP(DFENUM,DATA!B:CG,74,0) ->  | H107: =F107-D107 ->  | I107: =H107/D107 -> 
C108: BESD | D108: =VLOOKUP(DFENUM,DATA!B:CG,64,0) ->  | F108: =VLOOKUP(DFENUM,DATA!B:CG,75,0) ->  | H108: =F108-D108 ->  | I108: =H108/D108 -> 
C109: SLD | D109: =VLOOKUP(DFENUM,DATA!B:CG,65,0) ->  | F109: =VLOOKUP(DFENUM,DATA!B:CG,76,0) ->  | K109: This will always be 3% apart from for the BESD rate at certain schools which will differ slightly
C110: PD & PMLD | D110: =VLOOKUP(DFENUM,DATA!B:CG,66,0) ->  | F110: =VLOOKUP(DFENUM,DATA!B:CG,77,0) -> 
C111: ASD | D111: =VLOOKUP(DFENUM,DATA!B:CG,67,0) ->  | F111: =VLOOKUP(DFENUM,DATA!B:CG,78,0) -> 
B112: School Led Elements | K112: The component school led rates have all increased by 3%. The overall rate change will differ because the aim is to deliver 3% more funding in total to the school but this total may be spread across a different number of pupils to last year. Other changes such as floor area can make a further difference.
C113: All | D113: =VLOOKUP(DFENUM,DATA!B:CG,68,0) ->  | F113: =VLOOKUP(DFENUM,DATA!B:CG,79,0) -> 
B114: Minimum Funding Guarantee | J114: }
C115: MLD & SLCN | D115: =VLOOKUP(DFENUM,DATA!B:CG,69,0) ->  | F115: =VLOOKUP(DFENUM,DATA!B:CG,80,0) ->  | I115: =IFERROR(H115/D115,0) -> 0
C116: BESD | D116: =VLOOKUP(DFENUM,DATA!B:CG,70,0) ->  | F116: =VLOOKUP(DFENUM,DATA!B:CG,81,0) ->  | I116: =IFERROR(H116/D116,0) -> 0
C117: SLD | D117: =VLOOKUP(DFENUM,DATA!B:CG,71,0) ->  | F117: =VLOOKUP(DFENUM,DATA!B:CG,82,0) ->  | I117: 0 | K117: This can vary but will be reduced on account of increases in the above two elements
C118: PD & PMLD | D118: =VLOOKUP(DFENUM,DATA!B:CG,72,0) ->  | F118: =VLOOKUP(DFENUM,DATA!B:CG,83,0) ->  | I118: 0
C119: ASD | D119: =VLOOKUP(DFENUM,DATA!B:CG,73,0) ->  | F119: =VLOOKUP(DFENUM,DATA!B:CG,84,0) ->  | I119: 0
B122: Section 6 - 2020/21 Nursery Provision Lump Sum Calculation
B124: Rates
B126: Leadership Lump Sum per provision | E126: 52000
B127: Day Rate per FTE (see breakdown) | E127: 9029
B129: Calculation
D131: Units | E131: Rate | F131: Total
B132: Leadership Lump Sum | D132: =IF(D133>9,2,IF(D133>0,1,0)) -> 0 | E132: =E126 -> 52000 | F132: =D132*E132 -> 0
B133: Day Rate | D133: =IFERROR(VLOOKUP('Special Rates 2020-21'!DFENUM,DATA!B:BK,62,0),0) -> 0 | E133: =E127 -> 9029 | F133: =D133*E133 -> 0
E135: Total Funding at this provision: | F135: =IFERROR(F133+F132,"TBC") -> 0

Sheet DATA (hidden)
B1: 1 | C1: 2 | D1: 3 | E1: 4 | F1: 5 | G1: 6 | H1: 7 | I1: 8 | J1: 9 | K1: 10 | L1: 11 | M1: 12 | N1: 13 | O1: 14 | P1: 15 | Q1: 16 | R1: 17 | S1: 18 | T1: 19 | U1: 20 | V1: 21 | W1: 22 | X1: 23 | Y1: 24 | Z1: 25 | AA1: 26 | AB1: 27 | AC1: 28 | AD1: 29 | AE1: 30 | AF1: 31 | AG1: 32 | AH1: 33 | AI1: 34 | AJ1: 35 | AK1: 36 | AL1: 37 | AM1: 38 | AN1: 39 | AO1: 40 | AP1: 41 | AQ1: 42 | AR1: 43 | AS1: 44 | AT1: 45 | AU1: 46 | AV1: 47 | AW1: 48 | AX1: 49 | AY1: 50 | AZ1: 51 | BA1: 52 | BB1: 53 | BC1: 54 | BD1: 55 | BE1: 56 | BF1: 57 | BG1: 58 | BH1: 59 | BI1: 60 | BJ1: 61 | BK1: 62 | BL1: 63 | BM1: 64 | BN1: 65 | BO1: 66 | BP1: 67 | BQ1: 68 | BR1: 69 | BS1: 70 | BT1: 71 | BU1: 72 | BV1: 73 | BW1: 74 | BX1: 75 | BY1: 76 | BZ1: 77 | CA1: 78 | CB1: 79 | CC1: 80 | CD1: 81 | CE1: 82 | CF1: 83 | CG1: 84
D2: Places | L2: Rates | AV2: Residential Rates | BL2: 2019/20 Financial Year | BW2: 2020/21 Financial Year
D3: Pre-16 | F3: Post-16 | H3: Weekday | J3: Weekend | L3: MLD & SLCN | O3: ASD | R3: BESD | U3: SLD | X3: PD & PMLD | AD3: London Fringe | AV3: ASD Weekday | AY3: PD Weekday | BB3: PD Weekend | BE3: Residential Winter Rates | BG3: Residential Pupil Fringe | BI3: Residential School Fringe | BL3: Pupil Led | BQ3: School | BR3: MFG | BW3: Pupil Led | CB3: School | CC3: MFG
B4: DFE | C4: School | D4: 19/20 | E4: 20/21 | F4: 19/20 | G4: 20/21 | H4: 19/20 | I4: 20/21 | J4: 19/20 | K4: 20/21 | L4: Summer | M4: Winter | N4: Old Financial Year | O4: Summer | P4: Winter | Q4: Old Financial Year | R4: Summer | S4: Winter | T4: Old Financial Year | U4: Summer | V4: Winter | W4: Old Financial Year | X4: Summer | Y4: Winter | Z4: Old Financial Year | AA4: New MFG | AB4: ASD Rate | AC4: BESD Rate | AD4: MLD & SLCN | AE4: BESD | AF4: SLD | AG4: PD & PMLD | AH4: ASD | AI4: Residential weekdayASD | AJ4: Residential weekdayPD & PMLD | AK4: Residential WeekendPD & PMLD | AL4: Gross Day Floor Area | AM4: Residential floor area weekday | AN4: Residential floor area weekend | AO4: Grounds site area | AP4: Rentals | AQ4: Hydrotherapy Pool | AR4: No of FSM | AS4: London Fringe | AT4: Split site- Band 1 | AU4: Split site - Band 2 | AV4: Summer | AW4: Last Financial Year | AX4: Winter | AY4: Summer | AZ4: Last Financial Year | BA4: Winter | BB4: Summer | BC4: Last Financial Year | BD4: Winter | BE4: Weekday | BF4: Weekend | BG4: Weekday | BH4: Weekend | BI4: Weekday | BJ4: Weekend | BK4: Nursery FTE | BL4: MLD&SLCN | BM4: BESD | BN4: SLD | BO4: PD&PMLD | BP4: ASD | BQ4: All | BR4: MLD&SLCN | BS4: BESD | BT4: SLD | BU4: PD&PMLD | BV4: ASD | BW4: MLD&SLCN | BX4: BESD | BY4: SLD | BZ4: PD&PMLD | CA4: ASD | CB4: All | CC4: MLD&SLCN | CD4: BESD | CE4: SLD | CF4: PD&PMLD | CG4: ASD
B5: 7002 | C5: Broomhill Bank School | D5: 173 | E5: 218 | F5: 62 | G5: 100 | H5: 23 | I5: 23 | J5: 0 | K5: 0 | L5: 12877.70191 | M5: 12041.66294 | N5: 14529.8312 | O5: 19712.54315 | P5: 18876.50418 | Q5: 20545.70571 | R5: 14880.65762 | S5: 14044.61864 | T5: 15687.05791 | U5: 16924.08663 | V5: 16088.04766 | W5: 18083.41318 | X5: 23667.33663 | Y5: 22831.29766 | Z5: 24009.60845 | AA5: 14529.8312 | AB5: 16024.18131 | AC5: 11219.54534 | AD5: 37.57737338 | AE5: 52.20640247 | AF5: 61.40823132 | AG5: 101.0972616 | AH5: 79.45596209 | AI5: 907.4589392 | AJ5: 0 | AK5: 0 | AL5: 10814.893 | AM5: 632.1069985 | AN5: 0 | AO5: 10.685 | AP5: 0 | AQ5: 0 | AR5: 0.2247191011 | AS5: 1 | AT5: 0 | AU5: 1 | AV5: 56467.47924 | AW5: 59779.3956 | AX5: 55631.44026 | AY5: 0 | AZ5: 0 | BA5: 0 | BB5: 0 | BC5: 0 | BD5: 0 | BE5: 25693.78254 | BF5: 0 | BG5: 907.4589392 | BH5: 0 | BI5: 12.60509434 | BJ5: 0 | BK5: 0 | BL5: 9175.125869 | BM5: 11101.04482 | BN5: 13065.88041 | BO5: 19549.77464 | BP5: 15747.0886 | BQ5: 3316.86228 | BR5: 2037.843046 | BS5: 1269.150807 | BT5: 1700.670494 | BU5: 1142.971529 | BV5: 1481.754834 | BW5: 9530.705499 | BX5: 11533.66121 | BY5: 13577.09022 | BZ5: 20320.34022 | CA5: 16365.54674 | CB5: 2859.307009 | CC5: 2139.818687 | CD5: 1294.08969 | CE5: 1647.015953 | CF5: 829.9612193 | CG5: 1320.851966
B6: 7021 | C6: Valence School | D6: 72 | E6: 72 | F6: 33 | G6: 33 | H6: 46 | I6: 46 | J6: 16 | K6: 18 | L6: 16203.95385 | M6: 16250.1988 | N6: 16075.63029 | O6: 22382.2766 | P6: 22428.52155 | Q6: 21649.81372 | R6: 18240.26375 | S6: 18286.50869 | T6: 17667.10905 | U6: 20304.67293 | V6: 20350.91788 | W6: 19652.11788 | X6: 27138.41392 | Y6: 27184.65887 | Z6: 26223.02268 | AA6: 16075.63029 | AB6: 15285.91332 | AC6: 11219.54534 | AD6: 160.7291121 | AE6: 208.7123275 | AF6: 238.8943261 | AG6: 369.0743455 | AH6: 284.3572043 | AI6: 0 | AJ6: 1182.940361 | AK6: 1675.352476 | AL6: 8799 | AM6: 0 | AN6: 1924 | AO6: 18.322 | AP6: 0 | AQ6: 1 | AR6: 0.3150684932 | AS6: 1 | AT6: 0 | AU6: 0 | AV6: 0 | AW6: 0 | AX6: 0 | AY6: 75349.92933 | AZ6: 72443.29603 | BA6: 75396.17428 | BB6: 101401.0175 | BC6: 97492.41928 | BD6: 101447.2625 | BE6: 39460.98382 | BF6: 24841.07607 | BG6: 1182.940361 | BH6: 1675.352476 | BI6: 38.17542857 | BJ6: 38.17542857 | BK6: 0 | BL6: 9282.555036 | BM6: 11240.54532 | BN6: 13225.55415 | BO6: 19796.45895 | BP6: 15223.24999 | BQ6: 6426.563734 | BR6: 366.5115215 | BS6: 0 | BT6: 0 | BU6: 0 | BV6: 0 | BW6: 9653.857238 | BX6: 11690.16713 | BY6: 13754.57631 | BZ6: 20588.3173 | CA6: 15832.17999 | CB6: 6577.072834 | CC6: 0 | CD6: 0 | CE6: 0 | CF6: 0 | CG6: 0
B7: 7032 | C7: Bower Grove School | D7: 214 | E7: 214 | F7: 0 | G7: 0 | H7: 0 | I7: 0 | J7: 0 | K7: 0 | L7: 12040.23052 | M7: 12057.35751 | N7: 11585.85491 | O7: 18094.92518 | P7: 18112.05216 | Q7: 17407.6767 | R7: 14437.00934 | S7: 14453.25793 | T7: 13895.87038 | U7: 16062.78438 | V7: 16079.91137 | W7: 15453.69516 | X7: 22766.34535 | Y7: 22783.47234 | Z7: 21899.42686 | AA7: 11585.85491 | AB7: 15285.91332 | AC7: 11627.11909 | AD7: 0 | AE7: 0 | AF7: 0 | AG7: 0 | AH7: 0 | AI7: 0 | AJ7: 0 | AK7: 0 | AL7: 4093 | AM7: 0 | AN7: 0 | AO7: 2.1496 | AP7: 0 | AQ7: 0 | AR7: 0.4285714286 | AS7: 0 | AT7: 1 | AU7: 0 | AV7: 0 | AW7: 0 | AX7: 0 | AY7: 0 | AZ7: 0 | BA7: 0 | BB7: 0 | BC7: 0 | BD7: 0 | BE7: 0 | BF7: 0 | BG7: 0 | BH7: 0 | BI7: 0 | BJ7: 0 | BK7: 0 | BL7: 9128.007813 | BM7: 11438.02328 | BN7: 12995.84806 | BO7: 19441.57977 | BP7: 14949.8296 | BQ7: 2457.847096 | BR7: 0 | BS7: 0 | BT7: 0 | BU7: 0 | BV7: 0 | BW7: 9493.128126 | BX7: 11889.39455 | BY7: 13515.68199 | BZ7: 20219.24296 | CA7: 15547.82278 | CB7: 2557.093136 | CC7: 0 | CD7: 0 | CE7: 0 | CF7: 0 | CG7: 0
B8: 7033 | C8: St Anthony's School | D8: 98 | E8: 98 | F8: 0 | G8: 0 | H8: 0 | I8: 0 | J8: 0 | K8: 0 | L8: 14702.68291 | M8: 14710.04451 | N8: 14136.46734 | O8: 20757.37757 | P8: 20764.73916 | Q8: 19958.28913 | R8: 17063.75998 | S8: 17019.40023 | T8: 16397.83895 | U8: 18725.23677 | V8: 18732.59837 | W8: 18004.30759 | X8: 25428.79774 | Y8: 25436.15934 | Z8: 24450.03929 | AA8: 14136.46734 | AB8: 15285.91332 | AC8: 11540.57439 | AD8: 0 | AE8: 0 | AF8: 0 | AG8: 0 | AH8: 0 | AI8: 0 | AJ8: 0 | AK8: 0 | AL8: 3614 | AM8: 0 | AN8: 0 | AO8: 1.54 | AP8: 0 | AQ8: 0 | AR8: 0.5263157895 | AS8: 0 | AT8: 0 | AU8: 0 | AV8: 0 | AW8: 0 | AX8: 0 | AY8: 0 | AZ8: 0 | BA8: 0 | BB8: 0 | BC8: 0 | BD8: 0 | BE8: 0 | BF8: 0 | BG8: 0 | BH8: 0 | BI8: 0 | BJ8: 0 | BK8: 0 | BL8: 9128.007813 | BM8: 11389.37943 | BN8: 12995.84806 | BO8: 19441.57977 | BP8: 14949.8296 | BQ8: 5008.459526 | BR8: 0 | BS8: 0 | BT8: 0 | BU8: 0 | BV8: 0 | BW8: 9493.128126 | BX8: 11824.03442 | BY8: 13515.68199 | BZ8: 20219.24296 | CA8: 15547.82278 | CB8: 5213.849047 | CC8: 0 | CD8: 0 | CE8: 0 | CF8: 0 | CG8: 0
B9: 7039 | C9: The Ifield School | D9: 210 | E9: 210 | F9: 40 | G9: 40 | H9: 0 | I9: 0 | J9: 0 | K9: 0 | L9: 11838.71637 | M9: 11864.50729 | N9: 11468.42985 | O9: 18631.67902 | P9: 18657.46994 | Q9: 18000.1247 | R9: 13827.04305 | S9: 13852.83397 | T9: 13380.28242 | U9: 15861.27023 | V9: 15887.06115 | W9: 15336.2701 | X9: 22564.8312 | Y9: 22590.62212 | Z9: 21782.0018 | AA9: 11468.42985 | AB9: 16024.18131 | AC9: 11219.54534 | AD9: 0 | AE9: 0 | AF9: 0 | AG9: 0 | AH9: 0 | AI9: 0 | AJ9: 0 | AK9: 0 | AL9: 4274.139996 | AM9: 0 | AN9: 0 | AO9: 6.22 | AP9: 34275.57 | AQ9: 1 | AR9: 0.3160621762 | AS9: 0 | AT9: 1 | AU9: 0 | AV9: 0 | AW9: 0 | AX9: 0 | AY9: 0 | AZ9: 0 | BA9: 0 | BB9: 0 | BC9: 0 | BD9: 0 | BE9: 0 | BF9: 0 | BG9: 0 | BH9: 0 | BI9: 0 | BJ9: 0 | BK9: 6 | BL9: 9128.007813 | BM9: 11039.86039 | BN9: 12995.84806 | BO9: 19441.57977 | BP9: 15659.70267 | BQ9: 2340.422032 | BR9: 0 | BS9: 0 | BT9: 0 | BU9: 0 | BV9: 0 | BW9: 9493.128126 | BX9: 11481.4548 | BY9: 13515.68199 | BZ9: 20219.24296 | CA9: 16286.09078 | CB9: 2360.632947 | CC9: 0 | CD9: 0 | CE9: 0 | CF9: 0 | CG9: 0
B10: 7040 | C10: Foreland Fields School | D10: 188 | E10: 188 | F10: 32 | G10: 32 | H10: 0 | I10: 0 | J10: 0 | K10: 0 | L10: 12015.4732 | M10: 12016.94552 | N10: 11659.58227 | O10: 18808.43585 | P10: 18809.90817 | Q10: 18181.5435 | R10: 14003.79987 | S10: 14005.27219 | T10: 13561.70122 | U10: 16038.02706 | V10: 16039.49938 | W10: 15517.68889 | X10: 22741.58803 | Y10: 22743.06035 | Z10: 21963.42059 | AA10: 11659.58227 | AB10: 16024.18131 | AC10: 11219.54534 | AD10: 0 | AE10: 0 | AF10: 0 | AG10: 0 | AH10: 0 | AI10: 0 | AJ10: 0 | AK10: 0 | AL10: 4331 | AM10: 0 | AN10: 0 | AO10: 4.3045 | AP10: 0 | AQ10: 1 | AR10: 0.3274853801 | AS10: 0 | AT10: 1 | AU10: 0 | AV10: 0 | AW10: 0 | AX10: 0 | AY10: 0 | AZ10: 0 | BA10: 0 | BB10: 0 | BC10: 0 | BD10: 0 | BE10: 0 | BF10: 0 | BG10: 0 | BH10: 0 | BI10: 0 | BJ10: 0 | BK10: 10 | BL10: 9128.007813 | BM10: 11039.86039 | BN10: 12995.84806 | BO10: 19441.57977 | BP10: 15659.70267 | BQ10: 2521.840826 | BR10: 9.733631112 | BS10: 0 | BT10: 0 | BU10: 0 | BV10: 0 | BW10: 9493.128126 | BX10: 11481.4548 | BY10: 13515.68199 | BZ10: 20219.24296 | CA10: 16286.09078 | CB10: 2523.203924 | CC10: 0 | CD10: 0 | CE10: 0 | CF10: 0 | CG10: 0
B11: 7041 | C11: Goldwyn Community Special School | D11: 150 | E11: 150 | F11: 0 | G11: 0 | H11: 0 | I11: 0 | J11: 0 | K11: 0 | L11: 13614.2764 | M11: 13636.72497 | N11: 14106.03327 | O11: 19668.97106 | P11: 19691.41963 | Q11: 19327.36128 | R11: 18652.37906 | S11: 18674.82763 | T11: 18478.97198 | U11: 17636.83026 | V11: 17659.27883 | W11: 17574.9158 | X11: 24340.39123 | Y11: 24362.8398 | Z11: 23399.75742 | AA11: 14106.03327 | AB11: 15285.91332 | AC11: 14269.32133 | AD11: 0 | AE11: 0 | AF11: 0 | AG11: 0 | AH11: 0 | AI11: 0 | AJ11: 0 | AK11: 0 | AL11: 5362.38009 | AM11: 0 | AN11: 0 | AO11: 7.3492 | AP11: 0 | AQ11: 0 | AR11: 0.4189189189 | AS11: 0 | AT11: 1 | AU11: 1 | AV11: 0 | AW11: 0 | AX11: 0 | AY11: 0 | AZ11: 0 | BA11: 0 | BB11: 0 | BC11: 0 | BD11: 0 | BE11: 0 | BF11: 0 | BG11: 0 | BH11: 0 | BI11: 0 | BJ11: 0 | BK11: 0 | BL11: 9128.007813 | BM11: 13972.3373 | BN11: 12995.84806 | BO11: 19441.57977 | BP11: 14949.8296 | BQ11: 3958.177654 | BR11: 1019.847799 | BS11: 548.457028 | BT11: 620.8900839 | BU11: 0 | BV11: 419.3540228 | BW11: 9493.128126 | BX11: 14531.23079 | BY11: 13515.68199 | BZ11: 20219.24296 | CA11: 15547.82278 | CB11: 4134.243273 | CC11: 478.6618675 | CD11: 0 | CE11: 0 | CF11: 0 | CG11: 0
B12: 7043 | C12: The Beacon Folkestone | D12: 306 | E12: 316 | F12: 64 | G12: 64 | H12: 0 | I12: 0 | J12: 0 | K12: 0 | L12: 11235.77794 | M12: 11214.07079 | N12: 11771.3548 | O12: 18028.74059 | P12: 18007.03344 | Q12: 17927.53592 | R12: 13224.10462 | S12: 13202.39747 | T12: 13531.59727 | U12: 15258.3318 | V12: 15236.62465 | W12: 15381.76566 | X12: 21961.89278 | Y12: 21940.18562 | Z12: 21541.76856 | AA12: 11771.3548 | AB12: 16024.18131 | AC12: 11219.54534 | AD12: 0 | AE12: 0 | AF12: 0 | AG12: 0 | AH12: 0 | AI12: 0 | AJ12: 0 | AK12: 0 | AL12: 6634 | AM12: 0 | AN12: 0 | AO12: 0.9251 | AP12: 0 | AQ12: 1 | AR12: 0.4037037037 | AS12: 0 | AT12: 0 | AU12: 0 | AV12: 0 | AW12: 0 | AX12: 0 | AY12: 0 | AZ12: 0 | BA12: 0 | BB12: 0 | BC12: 0 | BD12: 0 | BE12: 0 | BF12: 0 | BG12: 0 | BH12: 0 | BI12: 0 | BJ12: 0 | BK12: 10 | BL12: 9128.007813 | BM12: 11039.86039 | BN12: 12995.84806 | BO12: 19441.57977 | BP12: 15659.70267 | BQ12: 1697.316713 | BR12: 946.030272 | BS12: 794.420171 | BT12: 688.6008871 | BU12: 402.872075 | BV12: 570.5165412 | BW12: 9493.128126 | BX12: 11481.4548 | BY12: 13515.68199 | BZ12: 20219.24296 | CA12: 16286.09078 | CB12: 1729.98731 | CC12: 548.2393622 | CD12: 320.1551583 | CE12: 136.0963674 | CF12: 0 | CG12: 0
B13: 7044 | C13: Rowhill School | D13: 110 | E13: 110 | F13: 0 | G13: 0 | H13: 0 | I13: 0 | J13: 0 | K13: 0 | L13: 14543.30152 | M13: 14530.94933 | N13: 13976.79128 | O13: 20721.62427 | P13: 20709.27208 | Q13: 19917.48623 | R13: 17051.13119 | S13: 16916.58175 | T13: 16371.07025 | U13: 18644.02059 | V13: 18631.6684 | W13: 17919.79039 | X13: 25477.76158 | Y13: 25465.40939 | Z13: 24490.69519 | AA13: 13976.79128 | AB13: 15285.91332 | AC13: 11561.05671 | AD13: 160.7291121 | AE13: 216.5234832 | AF13: 238.8943261 | AG13: 369.0743455 | AH13: 284.3572043 | AI13: 0 | AJ13: 0 | AK13: 0 | AL13: 4165 | AM13: 0 | AN13: 0 | AO13: 1.8948 | AP13: 0 | AQ13: 0 | AR13: 0.5454545455 | AS13: 1 | AT13: 0 | AU13: 0 | AV13: 0 | AW13: 0 | AX13: 0 | AY13: 0 | AZ13: 0 | BA13: 0 | BB13: 0 | BC13: 0 | BD13: 0 | BE13: 0 | BF13: 0 | BG13: 0 | BH13: 0 | BI13: 0 | BJ13: 0 | BK13: 0 | BL13: 9282.555036 | BM13: 11676.83401 | BN13: 13225.55415 | BO13: 19796.45895 | BP13: 15223.24999 | BQ13: 4694.236239 | BR13: 0 | BS13: 0 | BT13: 0 | BU13: 0 | BV13: 0 | BW13: 9653.857238 | BX13: 12090.40518 | BY13: 13754.57631 | BZ13: 20588.3173 | CA13: 15832.17999 | CB13: 4882.238835 | CC13: 0 | CD13: 0 | CE13: 0 | CF13: 0 | CG13: 0
B14: 7045 | C14: Elms School | D14: 158 | E14: 158 | F14: 0 | G14: 0 | H14: 0 | I14: 0 | J14: 0 | K14: 0 | L14: 12701.22129 | M14: 12724.2339 | N14: 13048.91728 | O14: 18755.91595 | P14: 18778.92856 | Q14: 18783.41174 | R14: 15102.88758 | S14: 15122.02124 | T14: 15260.26383 | U14: 16723.77516 | V14: 16746.78776 | W14: 16858.73993 | X14: 23427.33613 | Y14: 23450.34873 | Z14: 23207.78566 | AA14: 13048.91728 | AB14: 15285.91332 | AC14: 11629.006 | AD14: 0 | AE14: 0 | AF14: 0 | AG14: 0 | AH14: 0 | AI14: 0 | AJ14: 0 | AK14: 0 | AL14: 2771 | AM14: 0 | AN14: 0 | AO14: 2.13 | AP14: 0 | AQ14: 0 | AR14: 0.6917808219 | AS14: 0 | AT14: 0 | AU14: 0 | AV14: 0 | AW14: 0 | AX14: 0 | AY14: 0 | AZ14: 0 | BA14: 0 | BB14: 0 | BC14: 0 | BD14: 0 | BE14: 0 | BF14: 0 | BG14: 0 | BH14: 0 | BI14: 0 | BJ14: 0 | BK14: 0 | BL14: 9128.007813 | BM14: 11407.46433 | BN14: 12995.84806 | BO14: 19441.57977 | BP14: 14949.8296 | BQ14: 3517.362182 | BR14: 403.5472877 | BS14: 335.437315 | BT14: 345.5296839 | BU14: 248.8437083 | BV14: 316.2199609 | BW14: 9493.128126 | BX14: 11892.53169 | BY14: 13515.68199 | BZ14: 20219.24296 | CA14: 15547.82278 | CB14: 3221.517187 | CC14: 334.2719705 | CD14: 146.2149491 | CE14: 121.5407567 | CF14: 0 | CG14: 14.07177224
B15: 7051 | C15: Nexus School | D15: 186 | E15: 200 | F15: 14 | G15: 28 | H15: 0 | I15: 0 | J15: 0 | K15: 0 | L15: 12785.54242 | M15: 12408.9138 | N15: 12773.07695 | O15: 19578.50507 | P15: 19201.87645 | Q15: 19015.23239 | R15: 14773.8691 | S15: 14397.24048 | T15: 14600.18021 | U15: 16808.09628 | V15: 16431.46766 | W15: 16469.46213 | X15: 23511.65725 | Y15: 23135.02863 | Z15: 22629.46502 | AA15: 12773.07695 | AB15: 16024.18131 | AC15: 11219.54534 | AD15: 0 | AE15: 0 | AF15: 0 | AG15: 0 | AH15: 0 | AI15: 0 | AJ15: 0 | AK15: 0 | AL15: 6916 | AM15: 0 | AN15: 0 | AO15: 2.36 | AP15: 0 | AQ15: 1 | AR15: 0.2715231788 | AS15: 0 | AT15: 0 | AU15: 1 | AV15: 0 | AW15: 0 | AX15: 0 | AY15: 0 | AZ15: 0 | BA15: 0 | BB15: 0 | BC15: 0 | BD15: 0 | BE15: 0 | BF15: 0 | BG15: 0 | BH15: 0 | BI15: 0 | BJ15: 0 | BK15: 8 | BL15: 9128.007813 | BM15: 11039.86039 | BN15: 12995.84806 | BO15: 19441.57977 | BP15: 15659.70267 | BQ15: 3099.547265 | BR15: 545.5218697 | BS15: 460.7725518 | BT15: 374.0667966 | BU15: 88.33798444 | BV15: 255.9824506 | BW15: 9493.128126 | BX15: 11481.4548 | BY15: 13515.68199 | BZ15: 20219.24296 | CA15: 16286.09078 | CB15: 3072.714265 | CC15: 207.2345572 | CD15: 46.01113628 | CE15: 0 | CF15: 0 | CG15: 0
B16: 7052 | C16: Grange Park School | D16: 107 | E16: 100 | F16: 50 | G16: 50 | H16: 0 | I16: 0 | J16: 0 | K16: 0 | L16: 12401.43023 | M16: 12519.83648 | N16: 12861.06509 | O16: 19194.39288 | P16: 19312.79913 | Q16: 19294.78453 | R16: 14389.75691 | S16: 14508.16316 | T16: 14744.23988 | U16: 16423.98409 | V16: 16542.39034 | W16: 16670.88774 | X16: 23127.54506 | Y16: 23245.95132 | Z16: 23019.93347 | AA16: 12861.06509 | AB16: 16024.18131 | AC16: 11219.54534 | AD16: 0 | AE16: 0 | AF16: 0 | AG16: 0 | AH16: 0 | AI16: 0 | AJ16: 0 | AK16: 0 | AL16: 1958.53 | AM16: 0 | AN16: 0 | AO16: 1.1245 | AP16: 0 | AQ16: 0 | AR16: 0.2643678161 | AS16: 0 | AT16: 0 | AU16: 0 | AV16: 0 | AW16: 0 | AX16: 0 | AY16: 0 | AZ16: 0 | BA16: 0 | BB16: 0 | BC16: 0 | BD16: 0 | BE16: 0 | BF16: 0 | BG16: 0 | BH16: 0 | BI16: 0 | BJ16: 0 | BK16: 0 | BL16: 9128.007813 | BM16: 11039.86039 | BN16: 12995.84806 | BO16: 19441.57977 | BP16: 15659.70267 | BQ16: 3268.087139 | BR16: 464.97014 | BS16: 436.2923513 | BT16: 406.9525362 | BU16: 310.2665606 | BV16: 366.9947171 | BW16: 9493.128126 | BX16: 11481.4548 | BY16: 13515.68199 | BZ16: 20219.24296 | CA16: 16286.09078 | CB16: 2977.372418 | CC16: 390.564549 | CD16: 285.4126574 | CE16: 177.8333353 | CF16: 0 | CG16: 31.3213319
B17: 7056 | C17: Five Acre Wood School | D17: 412 | E17: 420 | F17: 58 | G17: 50 | H17: 0 | I17: 0 | J17: 0 | K17: 0 | L17: 11047.2818 | M17: 11058.37432 | N17: 11254.39 | O17: 17840.24445 | P17: 17851.33698 | Q17: 17351.22491 | R17: 13035.60848 | S17: 13046.701 | T17: 12850.29994 | U17: 15069.83566 | V17: 15080.92818 | W17: 14727.32813 | X17: 21773.39663 | Y17: 21784.48916 | Z17: 21081.40346 | AA17: 11254.39 | AB17: 16024.18131 | AC17: 11219.54534 | AD17: 0 | AE17: 0 | AF17: 0 | AG17: 0 | AH17: 0 | AI17: 0 | AJ17: 0 | AK17: 0 | AL17: 7768.4 | AM17: 0 | AN17: 0 | AO17: 2.6382 | AP17: 9259 | AQ17: 1 | AR17: 0.2803738318 | AS17: 0 | AT17: 1 | AU17: 1 | AV17: 0 | AW17: 0 | AX17: 0 | AY17: 0 | AZ17: 0 | BA17: 0 | BB17: 0 | BC17: 0 | BD17: 0 | BE17: 0 | BF17: 0 | BG17: 0 | BH17: 0 | BI17: 0 | BJ17: 0 | BK17: 15 | BL17: 9128.007813 | BM17: 11039.86039 | BN17: 12995.84806 | BO17: 19441.57977 | BP17: 15659.70267 | BQ17: 1639.823695 | BR17: 486.5623638 | BS17: 170.6158582 | BT17: 91.65636809 | BU17: 0 | BV17: 51.698549 | BW17: 9493.128126 | BX17: 11481.4548 | BY17: 13515.68199 | BZ17: 20219.24296 | CA17: 16286.09078 | CB17: 1560.624313 | CC17: 200.6375609 | CD17: 0 | CE17: 0 | CF17: 0 | CG17: 0
B18: 7058 | C18: Stone Bay School | D18: 45 | E18: 65 | F18: 15 | G18: 15 | H18: 18 | I18: 18 | J18: 0 | K18: 0 | L18: 17203.61918 | M18: 15353.7146 | N18: 16536.41052 | O18: 30640.99377 | P18: 28791.08919 | Q18: 29456.963 | R18: 19191.94586 | S18: 17342.04128 | T18: 18448.26309 | U18: 21226.17304 | V18: 19376.26846 | W18: 20404.25077 | X18: 27929.73401 | Y18: 26079.82943 | Z18: 26849.98247 | AA18: 16536.41052 | AB18: 22668.59325 | AC18: 11219.54534 | AD18: 0 | AE18: 0 | AF18: 0 | AG18: 0 | AH18: 0 | AI18: 0 | AJ18: 0 | AK18: 0 | AL18: 2396.216342 | AM18: 1481.783658 | AN18: 0 | AO18: 0.96 | AP18: 0 | AQ18: 1 | AR18: 0.3846153846 | AS18: 0 | AT18: 0 | AU18: 0 | AV18: 77173.94715 | AW18: 73200.55144 | AX18: 75324.04256 | AY18: 74462.68739 | AZ18: 70593.57091 | BA18: 72612.78281 | BB18: 0 | BC18: 0 | BD18: 0 | BE18: 31395.55087 | BF18: 0 | BG18: 0 | BH18: 0 | BI18: 0 | BJ18: 0 | BK18: 0 | BL18: 9128.007813 | BM18: 11039.86039 | BN18: 12995.84806 | BO18: 19441.57977 | BP18: 22048.5603 | BQ18: 7408.402702 | BR18: 0 | BS18: 0 | BT18: 0 | BU18: 0 | BV18: 0 | BW18: 9493.128126 | BX18: 11481.4548 | BY18: 13515.68199 | BZ18: 20219.24296 | CA18: 22930.50272 | CB18: 6631.380048 | CC18: 411.9023408 | CD18: 335.4282378 | CE18: 257.1887308 | CF18: 0 | CG18: 0
B19: 7062 | C19: The Orchard School | D19: 83 | E19: 83 | F19: 0 | G19: 0 | H19: 0 | I19: 0 | J19: 0 | K19: 0 | L19: 15167.94995 | M19: 15174.18417 | N19: 14582.40276 | O19: 21222.64461 | P19: 21228.87883 | Q19: 20404.22455 | R19: 17467.81288 | S19: 17457.32253 | T19: 16793.80943 | U19: 19190.50381 | V19: 19196.73803 | W19: 18450.24301 | X19: 25894.06478 | Y19: 25900.299 | Z19: 24895.97471 | AA19: 14582.40276 | AB19: 15285.91332 | AC19: 11514.35702 | AD19: 0 | AE19: 0 | AF19: 0 | AG19: 0 | AH19: 0 | AI19: 0 | AJ19: 0 | AK19: 0 | AL19: 2505 | AM19: 0 | AN19: 0 | AO19: 1.81 | AP19: 0 | AQ19: 0 | AR19: 0.47 | AS19: 0 | AT19: 0 | AU19: 0 | AV19: 0 | AW19: 0 | AX19: 0 | AY19: 0 | AZ19: 0 | BA19: 0 | BB19: 0 | BC19: 0 | BD19: 0 | BE19: 0 | BF19: 0 | BG19: 0 | BH19: 0 | BI19: 0 | BJ19: 0 | BK19: 0 | BL19: 9128.007813 | BM19: 11339.41448 | BN19: 12995.84806 | BO19: 19441.57977 | BP19: 14949.8296 | BQ19: 5454.394946 | BR19: 0 | BS19: 0 | BT19: 0 | BU19: 0 | BV19: 0 | BW19: 9493.128126 | BX19: 11783.23506 | BY19: 13515.68199 | BZ19: 20219.24296 | CA19: 15547.82278 | CB19: 5678.458452 | CC19: 0 | CD19: 0 | CE19: 0 | CF19: 0 | CG19: 0
B20: 7063 | C20: St Nicholas' School | D20: 229 | E20: 249 | F20: 43 | G20: 43 | H20: 0 | I20: 0 | J20: 0 | K20: 0 | L20: 11935.44111 | M20: 11788.42694 | N20: 11570.65166 | O20: 18728.40376 | P20: 18581.3896 | Q20: 18097.80719 | R20: 13923.76779 | S20: 13776.75362 | T20: 13477.96491 | U20: 15957.99497 | V20: 15810.9808 | W20: 15433.95259 | X20: 22661.55594 | Y20: 22514.54178 | Z20: 21879.68429 | AA20: 11570.65166 | AB20: 16024.18131 | AC20: 11219.54534 | AD20: 0 | AE20: 0 | AF20: 0 | AG20: 0 | AH20: 0 | AI20: 0 | AJ20: 0 | AK20: 0 | AL20: 3971.77001 | AM20: 0 | AN20: 0 | AO20: 0.9305 | AP20: 77747 | AQ20: 1 | AR20: 0.3433476395 | AS20: 0 | AT20: 1 | AU20: 1 | AV20: 0 | AW20: 0 | AX20: 0 | AY20: 0 | AZ20: 0 | BA20: 0 | BB20: 0 | BC20: 0 | BD20: 0 | BE20: 0 | BF20: 0 | BG20: 0 | BH20: 0 | BI20: 0 | BJ20: 0 | BK20: 6 | BL20: 9128.007813 | BM20: 11039.86039 | BN20: 12995.84806 | BO20: 19441.57977 | BP20: 15659.70267 | BQ20: 2438.104521 | BR20: 4.539324918 | BS20: 0 | BT20: 0 | BU20: 0 | BV20: 0 | BW20: 9493.128126 | BX20: 11481.4548 | BY20: 13515.68199 | BZ20: 20219.24296 | CA20: 16286.09078 | CB20: 2356.55472 | CC20: 0 | CD20: 0 | CE20: 0 | CF20: 0 | CG20: 0
B21: 7066 | C21: Milestone School | D21: 275 | E21: 285 | F21: 55 | G21: 55 | H21: 0 | I21: 0 | J21: 0 | K21: 0 | L21: 11982.64183 | M21: 11934.53853 | N21: 11515.82698 | O21: 18912.96625 | P21: 18864.86295 | Q21: 18179.60046 | R21: 14018.95172 | S21: 13970.84842 | T21: 13473.81726 | U21: 16083.3609 | V21: 16035.2576 | W21: 15458.82609 | X21: 22917.1019 | Y21: 22868.99859 | Z21: 22029.73089 | AA21: 11515.82698 | AB21: 16024.18131 | AC21: 11219.54534 | AD21: 160.7291121 | AE21: 208.7123275 | AF21: 238.8943261 | AG21: 369.0743455 | AH21: 298.090883 | AI21: 0 | AJ21: 0 | AK21: 0 | AL21: 7254 | AM21: 0 | AN21: 0 | AO21: 4.6955 | AP21: 0 | AQ21: 1 | AR21: 0.2747252747 | AS21: 1 | AT21: 0 | AU21: 3 | AV21: 0 | AW21: 0 | AX21: 0 | AY21: 0 | AZ21: 0 | BA21: 0 | BB21: 0 | BC21: 0 | BD21: 0 | BE21: 0 | BF21: 0 | BG21: 0 | BH21: 0 | BI21: 0 | BJ21: 0 | BK21: 12 | BL21: 9282.555036 | BM21: 11240.54532 | BN21: 13225.55415 | BO21: 19796.45895 | BP21: 15946.32852 | BQ21: 2233.271943 | BR21: 0 | BS21: 0 | BT21: 0 | BU21: 0 | BV21: 0 | BW21: 9653.857238 | BX21: 11690.16713 | BY21: 13754.57631 | BZ21: 20588.3173 | CA21: 16584.18166 | CB21: 2300.724332 | CC21: 0 | CD21: 0 | CE21: 0 | CF21: 0 | CG21: 0
B22: 7067 | C22: Portal House School | D22: 80 | E22: 80 | F22: 0 | G22: 0 | H22: 0 | I22: 0 | J22: 0 | K22: 0 | L22: 15488.36674 | M22: 15795.95625 | N22: 16589.67015 | O22: 21543.06139 | P22: 21850.65091 | Q22: 22324.16461 | R22: 20526.4694 | S22: 20834.05891 | T22: 21361.33469 | U22: 19510.9206 | V22: 19818.51011 | W22: 20399.49279 | X22: 26214.48157 | Y22: 26522.07108 | Z22: 26748.53852 | AA22: 16589.67015 | AB22: 15285.91332 | AC22: 14269.32133 | AD22: 0 | AE22: 0 | AF22: 0 | AG22: 0 | AH22: 0 | AI22: 0 | AJ22: 0 | AK22: 0 | AL22: 3816 | AM22: 0 | AN22: 0 | AO22: 0.81 | AP22: 0 | AQ22: 0 | AR22: 0.2816901408 | AS22: 0 | AT22: 0 | AU22: 0 | AV22: 0 | AW22: 0 | AX22: 0 | AY22: 0 | AZ22: 0 | BA22: 0 | BB22: 0 | BC22: 0 | BD22: 0 | BE22: 0 | BF22: 0 | BG22: 0 | BH22: 0 | BI22: 0 | BJ22: 0 | BK22: 0 | BL22: 9128.007813 | BM22: 13972.3373 | BN22: 12995.84806 | BO22: 19441.57977 | BP22: 14949.8296 | BQ22: 6571.261335 | BR22: 890.4009976 | BS22: 817.7360554 | BT22: 832.3833939 | BU22: 735.6974183 | BV22: 803.0736708 | BW22: 9493.128126 | BX22: 14531.23079 | BY22: 13515.68199 | BZ22: 20219.24296 | CA22: 15547.82278 | CB22: 6174.665826 | CC22: 921.8761945 | CD22: 655.4380729 | CE22: 709.1449807 | CF22: 354.6297369 | CG22: 601.6759962
B23: 7069 | C23: The Wyvern School | D23: 235 | E23: 255 | F23: 35 | G23: 35 | H23: 0 | I23: 0 | J23: 0 | K23: 0 | L23: 11763.73152 | M23: 11642.10044 | N23: 11422.55833 | O23: 18556.69417 | P23: 18435.06309 | Q23: 17906.13057 | R23: 13752.0582 | S23: 13630.42712 | T23: 13305.73311 | U23: 15786.28538 | V23: 15664.6543 | W23: 15242.27596 | X23: 22489.84636 | Y23: 22368.21527 | Z23: 21688.00767 | AA23: 11422.55833 | AB23: 16024.18131 | AC23: 11219.54534 | AD23: 0 | AE23: 0 | AF23: 0 | AG23: 0 | AH23: 0 | AI23: 0 | AJ23: 0 | AK23: 0 | AL23: 6156 | AM23: 0 | AN23: 0 | AO23: 7.6 | AP23: 0 | AQ23: 1 | AR23: 0.3076923077 | AS23: 0 | AT23: 1 | AU23: 0 | AV23: 0 | AW23: 0 | AX23: 0 | AY23: 0 | AZ23: 0 | BA23: 0 | BB23: 0 | BC23: 0 | BD23: 0 | BE23: 0 | BF23: 0 | BG23: 0 | BH23: 0 | BI23: 0 | BJ23: 0 | BK23: 5 | BL23: 9128.007813 | BM23: 11039.86039 | BN23: 12995.84806 | BO23: 19441.57977 | BP23: 15659.70267 | BQ23: 2246.4279 | BR23: 48.12261164 | BS23: 19.44482301 | BT23: 0 | BU23: 0 | BV23: 0 | BW23: 9493.128126 | BX23: 11481.4548 | BY23: 13515.68199 | BZ23: 20219.24296 | CA23: 16286.09078 | CB23: 2199.651931 | CC23: 0 | CD23: 0 | CE23: 0 | CF23: 0 | CG23: 0
B24: 7070 | C24: Oakley School | D24: 158 | E24: 200 | F24: 42 | G24: 52 | H24: 0 | I24: 0 | J24: 0 | K24: 0 | L24: 12403.75449 | M24: 11851.17913 | N24: 11957.73824 | O24: 19196.71715 | P24: 18644.14178 | Q24: 18489.4331 | R24: 14392.08117 | S24: 13839.50581 | T24: 13869.59081 | U24: 16426.30835 | V24: 15873.73299 | W24: 15825.57849 | X24: 23129.86933 | Y24: 22577.29396 | Z24: 22271.31019 | AA24: 11957.73824 | AB24: 16024.18131 | AC24: 11219.54534 | AD24: 0 | AE24: 0 | AF24: 0 | AG24: 0 | AH24: 0 | AI24: 0 | AJ24: 0 | AK24: 0 | AL24: 4287 | AM24: 0 | AN24: 0 | AO24: 11.4161 | AP24: 0 | AQ24: 0 | AR24: 0.3076923077 | AS24: 0 | AT24: 0 | AU24: 1 | AV24: 0 | AW24: 0 | AX24: 0 | AY24: 0 | AZ24: 0 | BA24: 0 | BB24: 0 | BC24: 0 | BD24: 0 | BE24: 0 | BF24: 0 | BG24: 0 | BH24: 0 | BI24: 0 | BJ24: 0 | BK24: 12 | BL24: 9128.007813 | BM24: 11039.86039 | BN24: 12995.84806 | BO24: 19441.57977 | BP24: 15659.70267 | BQ24: 2829.730425 | BR24: 0 | BS24: 0 | BT24: 0 | BU24: 0 | BV24: 0 | BW24: 9493.128126 | BX24: 11481.4548 | BY24: 13515.68199 | BZ24: 20219.24296 | CA24: 16286.09078 | CB24: 2588.29074 | CC24: 0 | CD24: 0 | CE24: 0 | CF24: 0 | CG24: 0
B25: 7072 | C25: Meadowfield School | D25: 270 | E25: 298 | F25: 50 | G25: 50 | H25: 0 | I25: 0 | J25: 0 | K25: 0 | L25: 11506.39752 | M25: 11359.38236 | N25: 11343.15304 | O25: 18299.36017 | P25: 18152.34501 | Q25: 17776.87248 | R25: 13494.7242 | S25: 13347.70904 | T25: 13226.32783 | U25: 15528.95138 | V25: 15381.93622 | W25: 15152.97569 | X25: 22232.51236 | Y25: 22085.49719 | Z25: 21519.8742 | AA25: 11343.15304 | AB25: 16024.18131 | AC25: 11219.54534 | AD25: 0 | AE25: 0 | AF25: 0 | AG25: 0 | AH25: 0 | AI25: 0 | AJ25: 0 | AK25: 0 | AL25: 6963 | AM25: 0 | AN25: 0 | AO25: 2.3726 | AP25: 0 | AQ25: 1 | AR25: 0.3016528926 | AS25: 0 | AT25: 1 | AU25: 0 | AV25: 0 | AW25: 0 | AX25: 0 | AY25: 0 | AZ25: 0 | BA25: 0 | BB25: 0 | BC25: 0 | BD25: 0 | BE25: 0 | BF25: 0 | BG25: 0 | BH25: 0 | BI25: 0 | BJ25: 0 | BK25: 6 | BL25: 9128.007813 | BM25: 11039.86039 | BN25: 12995.84806 | BO25: 19441.57977 | BP25: 15659.70267 | BQ25: 2078.294428 | BR25: 136.850802 | BS25: 108.1730133 | BT25: 78.8331982 | BU25: 0 | BV25: 38.8753791 | BW25: 9493.128126 | BX25: 11481.4548 | BY25: 13515.68199 | BZ25: 20219.24296 | CA25: 16286.09078 | CB25: 1927.510553 | CC25: 0 | CD25: 0 | CE25: 0 | CF25: 0 | CG25: 0
B26: 7073 | C26: Laleham Gap School | D26: 196 | E26: 196 | F26: 0 | G26: 0 | H26: 4 | I26: 0 | J26: 0 | K26: 0 | L26: 12229.07723 | M26: 12372.81984 | N26: 11749.7945 | O26: 19022.03988 | P26: 19165.78249 | Q26: 18271.73841 | R26: 14217.40391 | S26: 14361.14652 | T26: 13651.89613 | U26: 16251.63109 | V26: 16395.3737 | W26: 15607.8838 | X26: 22955.19206 | Y26: 23098.93468 | Z26: 22053.6155 | AA26: 11749.7945 | AB26: 16024.18131 | AC26: 11219.54534 | AD26: 0 | AE26: 0 | AF26: 0 | AG26: 0 | AH26: 0 | AI26: 0 | AJ26: 0 | AK26: 0 | AL26: 5300.09 | AM26: 433 | AN26: 0 | AO26: 2.5697 | AP26: 0 | AQ26: 0 | AR26: 0.2564102564 | AS26: 0 | AT26: 0 | AU26: 0 | AV26: 88931.86406 | AW26: 81636.99815 | AX26: 0 | AY26: 92865.01624 | AZ26: 85418.87525 | BA26: 0 | BB26: 0 | BC26: 0 | BD26: 0 | BE26: 0 | BF26: 0 | BG26: 0 | BH26: 0 | BI26: 0 | BJ26: 0 | BK26: 0 | BL26: 9128.007813 | BM26: 11039.86039 | BN26: 12995.84806 | BO26: 19441.57977 | BP26: 15659.70267 | BQ26: 2612.035736 | BR26: 9.75095362 | BS26: 0 | BT26: 0 | BU26: 0 | BV26: 0 | BW26: 9493.128126 | BX26: 11481.4548 | BY26: 13515.68199 | BZ26: 20219.24296 | CA26: 16286.09078 | CB26: 2819.798962 | CC26: 0 | CD26: 0 | CE26: 0 | CF26: 0 | CG26: 0
